fUST/lending_fUST_20250307
["ID","MTS","AMOUNT","RATE_DAILY","PERIOD"]
[355603482,1741359039099,-153.0,0.00035326,2]
[355603483,1741359039109,-153.0,0.00035326,2]
[355603484,1741359039118,-153.0,0.00035326,2]
[355603485,1741359039127,-153.0,0.00035326,2]
[355603486,1741359039137,-153.0,0.00035326,2]
[355603487,1741359039147,-153.0,0.00035327,2]
[355603488,1741359039156,-153.0,0.00035327,2]
[355603489,1741359039165,-153.0,0.00035327,2]
[355603490,1741359039175,-500.0,0.000354,5]
[355603491,1741359039184,-506.14773387,0.000354,5]
[355603492,1741359039194,-502.7835568,0.000354,5]
[355603493,1741359039203,-1000.0,0.00035616,2]
[355603494,1741359039213,-500.0,0.0003589,2]
[355603495,1741359039223,-766.00542664,0.000362,98]
[355603496,1741359039232,-766.00542662,0.000362,98]
[355603497,1741359039242,-766.00542662,0.000362,98]
[355603498,1741359039251,-2075.0,0.000374,19]
[355603499,1741359039261,-500.0,0.00037576,2]
[355603500,1741359039272,-500.0,0.00037576,15]
[355603501,1741359039281,-500.0,0.00037576,15]
[355603502,1741359039290,-169.36930988,0.00037576,2]
[355603503,1741359039300,-500.0,0.00037576,15]
[355603504,1741359039308,-500.0,0.00037576,15]
[355603505,1741359039318,-500.0,0.00037576,15]
[355603506,1741359039327,-500.0,0.00037576,15]
[355603507,1741359039337,-190.969892,0.00037576,15]
[355603508,1741359039346,-500.0,0.00037576,15]
[355603509,1741359039356,-500.0,0.00037576,15]
[355603511,1741359039365,-500.0,0.00037576,15]
[355603513,1741359039375,-500.0,0.00037576,15]
[355603514,1741359039384,-500.0,0.00037576,15]
[355603515,1741359039394,-500.0,0.00037576,15]
[355603516,1741359039403,-500.0,0.00037576,15]
[355603517,1741359039413,-500.0,0.00037576,15]
[355603518,1741359039422,-500.0,0.00037576,15]
[355603519,1741359039432,-500.0,0.00037576,15]
[355603520,1741359039441,-500.0,0.00037576,15]
[355603522,1741359039451,-500.0,0.00037576,15]
[355603524,1741359039461,-500.0,0.00037576,15]
[355603526,1741359039471,-500.0,0.00037576,15]
[355603528,1741359039480,-500.0,0.00037576,15]
[355603529,1741359039490,-500.0,0.00037576,15]
[355603530,1741359039499,-500.0,0.00037576,15]
[355603531,1741359039509,-500.0,0.00037576,15]
[355603532,1741359039526,-500.0,0.00037576,15]
[355603534,1741359039536,-500.0,0.00037576,15]
[355603535,1741359039546,-390.30667113,0.00037576,15]
[355603536,1741359039557,-500.0,0.00037576,15]
[355603537,1741359039566,-500.0,0.00037576,15]
[355603538,1741359039576,-187.88554355,0.00037576,15]
[355603539,1741359039586,-500.0,0.00037576,15]
[355603540,1741359039598,-500.0,0.00037576,15]
[355603541,1741359039608,-500.0,0.00037576,15]
[355603542,1741359039618,-500.0,0.00037576,15]
[355603543,1741359039628,-389.03066712,0.00037576,15]
[355603544,1741359039638,-500.0,0.00037576,15]
[355603545,1741359039647,-8866.06982899,0.00037577,3]
[355603546,1741359039658,-152.18,0.00038,31]
[355603547,1741359039667,-152.18,0.00038,31]
[355603548,1741359039677,-152.18,0.00038,31]
[355603549,1741359039687,-152.18,0.00038,31]
[355603550,1741359039697,-152.18,0.00038,31]
[355603551,1741359039707,-152.18,0.00038,31]
[355603553,1741359039716,-929.55854348,0.00038329,2]
[355603554,1741359039726,-1037.0,0.00038355,2]
[355603556,1741359039735,-606.13,0.00038356,30]
[355603557,1741359039745,-500.0,0.00038356,30]
[355603558,1741359039754,-500.0,0.00038356,30]
[355603559,1741359039771,-500.0,0.00038356,30]
[355603560,1741359039780,-500.0,0.00038356,30]
[355603561,1741359039790,-500.0,0.00038356,30]
[355603562,1741359039799,-500.0,0.00038356,30]
[355603563,1741359039808,-500.0,0.00038356,30]
[355603564,1741359039818,-500.0,0.00038356,30]
[355603565,1741359039828,-500.0,0.00038356,30]
[355603567,1741359039837,-500.0,0.00038356,30]
[355603569,1741359039846,-500.0,0.00038356,30]
[355603571,1741359039856,-500.0,0.00038356,30]
[355603573,1741359039865,-500.0,0.00038356,30]
[355603574,1741359039875,-500.0,0.00038356,30]
[355603575,1741359039885,-500.0,0.00038356,30]
[355603576,1741359039894,-500.0,0.00038356,30]
[355603578,1741359039905,-500.0,0.00038356,30]
[355603579,1741359039915,-513.17,0.00038356,30]
[355603580,1741359039925,-500.0,0.00038356,30]
[355603582,1741359039935,-631.88930015,0.00038356,30]
[355603583,1741359039945,-500.0,0.00038356,30]
[355603584,1741359039955,-500.0,0.00038356,30]
[355603586,1741359039964,-500.0,0.00038356,30]
[355603588,1741359039973,-500.0,0.00038356,30]
[355603589,1741359039983,-500.0,0.00038356,30]
[355603590,1741359039992,-500.0,0.00038356,30]
[355603592,1741359040002,-500.0,0.00038356,30]
[355603594,1741359040015,-500.0,0.00038356,30]
[355603596,1741359040025,-500.0,0.00038356,30]
[355603597,1741359040034,-200.77431269,0.00038356,30]
[355603599,1741359040044,-500.0,0.00038356,30]
[355603601,1741359040054,-500.0,0.00038356,30]
[355603603,1741359040063,-500.0,0.00038356,30]
[355603604,1741359040073,-500.0,0.00038356,3]
[355603605,1741359040082,-500.0,0.00038356,30]
[355603606,1741359040091,-1000.0,0.00038356,2]
[355603607,1741359040101,-500.0,0.00038356,30]
[355603608,1741359040111,-500.0,0.00038356,30]
[355603609,1741359040120,-506.45417914,0.00038356,30]
[355603610,1741359040129,-518.72016922,0.00038356,30]
[355603612,1741359040139,-513.99,0.00038356,30]
[355603613,1741359040149,-8866.06982899,0.00038363,3]
[355603614,1741359040158,-505.65217611,0.00038373,5]
[355603615,1741359040168,-500.0,0.00038373,5]
[355603616,1741359040178,-500.0,0.00038373,5]
[355603617,1741359040188,-500.0,0.00038373,5]
[355603619,1741359040198,-251.72157191,0.00038373,5]
[355603620,1741359040207,-500.0,0.00038373,5]
[355603621,1741359040218,-500.0,0.00038373,5]
[355603622,1741359040228,-500.0,0.0003863,30]
[355603623,1741359040238,-500.0,0.0003863,30]
[355603624,1741359040248,-500.0,0.0003863,30]
[355603625,1741359040257,-500.0,0.0003863,30]
[355603627,1741359040273,-500.0,0.0003863,30]
[355603629,1741359040283,-500.0,0.0003863,30]
[355603631,1741359040292,-500.0,0.0003863,30]
[355603632,1741359040302,-500.0,0.0003863,30]
[355603633,1741359040312,-500.0,0.0003863,30]
[355603634,1741359040322,-500.0,0.0003863,30]
[355603635,1741359040332,-500.0,0.0003863,30]
[355603636,1741359040343,-500.0,0.0003863,30]
[355603637,1741359040352,-500.0,0.0003863,30]
[355603638,1741359040362,-500.0,0.0003863,30]
[355603639,1741359040371,-513.17,0.0003863,30]
[355603640,1741359040381,-500.0,0.0003863,30]
[355603641,1741359040391,-500.0,0.0003863,30]
[355603642,1741359040400,-605.02099327,0.0003863,30]
[355603643,1741359040410,-500.0,0.0003863,30]
[355603644,1741359040420,-500.0,0.0003863,30]
[355603645,1741359040430,-500.0,0.0003863,30]
[355603646,1741359040439,-500.0,0.0003863,30]
[355603647,1741359040449,-500.0,0.0003863,30]
[355603648,1741359040459,-265.28,0.0003863,30]
[355603649,1741359040468,-500.0,0.0003863,30]
[355603650,1741359040478,-190.50865914,0.0003863,30]
[355603651,1741359040487,-500.0,0.0003863,30]
[355603653,1741359040497,-500.0,0.0003863,30]
[355603654,1741359040507,-500.0,0.0003863,3]
[355603655,1741359040524,-500.0,0.0003863,30]
[355603656,1741359040534,-1000.0,0.0003863,2]
[355603657,1741359040543,-500.0,0.0003863,30]
[355603658,1741359040553,-500.0,0.0003863,30]
[355603659,1741359040563,-218.4,0.000387,30]
[355603660,1741359040573,-185.42,0.000387,30]
[355603661,1741359040583,-1500.0,0.00038732,5]
[355603662,1741359040592,-8866.06982899,0.00038894,3]
[355603663,1741359040603,-500.0,0.00038904,30]
[355603664,1741359040611,-500.0,0.00038904,30]
[355603665,1741359040620,-500.0,0.00038904,30]
[355603666,1741359040630,-500.0,0.00038904,30]
[355603667,1741359040640,-500.0,0.00038904,30]
[355603668,1741359040649,-500.0,0.00038904,30]
[355603669,1741359040659,-500.0,0.00038904,30]
[355603670,1741359040669,-500.0,0.00038904,30]
[355603671,1741359040678,-188.42494031,0.00038904,30]
[355603672,1741359040688,-500.0,0.00038904,30]
[355603673,1741359040698,-500.0,0.00038904,30]
[355603674,1741359040708,-500.0,0.00038904,30]
[355603675,1741359040718,-500.0,0.00038904,30]
[355603676,1741359040727,-500.0,0.00038904,30]
[355603677,1741359040737,-513.17,0.00038904,30]
[355603678,1741359040747,-500.0,0.00038904,30]
[355603679,1741359040758,-500.0,0.00038904,30]
[355603680,1741359040772,-500.0,0.00038904,30]
[355603681,1741359040782,-500.0,0.00038904,30]
[355603682,1741359040792,-500.0,0.00038904,30]
[355603683,1741359040802,-500.0,0.00038904,30]
[355603684,1741359040811,-500.0,0.00038904,30]
[355603685,1741359040821,-500.0,0.00038904,30]
[355603686,1741359040831,-500.0,0.00038904,30]
[355603687,1741359040840,-500.0,0.00038904,3]
[355603688,1741359040849,-618.43,0.00038904,30]
[355603689,1741359040859,-1000.0,0.00038904,2]
[355603690,1741359040868,-495.46,0.00038904,30]
[355603691,1741359040878,-500.0,0.00038904,30]
[355603692,1741359040887,-500.0,0.00039178,30]
[355603693,1741359040898,-500.0,0.00039178,30]
[355603694,1741359040908,-576.4117187,0.00039178,30]
[355603695,1741359040918,-500.0,0.00039178,30]
[355603696,1741359040927,-500.0,0.00039178,30]
[355603697,1741359040937,-500.0,0.00039178,30]
[355603698,1741359040947,-500.0,0.00039178,30]
[355603699,1741359040958,-500.0,0.00039178,30]
[355603700,1741359040968,-500.0,0.00039178,30]
[355603701,1741359040978,-500.0,0.00039178,30]
[355603702,1741359040987,-500.0,0.00039178,30]
[355603703,1741359040997,-500.0,0.00039178,30]
[355603704,1741359041006,-500.0,0.00039178,30]
[355603705,1741359041022,-513.17,0.00039178,30]
[355603706,1741359041031,-500.0,0.00039178,30]
[355603707,1741359041041,-500.0,0.00039178,30]
[355603708,1741359041051,-500.0,0.00039178,30]
[355603709,1741359041060,-500.0,0.00039178,30]
[355603710,1741359041070,-500.0,0.00039178,30]
[355603711,1741359041080,-209.41220376,0.00039178,30]
[355603712,1741359041089,-500.0,0.00039178,30]
[355603713,1741359041098,-500.0,0.00039178,30]
[355603714,1741359041107,-500.0,0.00039178,30]
[355603715,1741359041116,-500.0,0.00039178,3]
[355603716,1741359041126,-1000.0,0.00039178,2]
[355603717,1741359041136,-200.0,0.000392,120]
[355603718,1741359041146,-260.2665,0.000392,120]
[355603719,1741359041156,-500.0,0.00039452,30]
[355603720,1741359041166,-500.0,0.00039452,30]
[355603721,1741359041295,-555.7,0.00039452,30]
[355603722,1741359041305,-500.0,0.00039452,30]
[355603723,1741359041315,-500.0,0.00039452,30]
[355603724,1741359041325,-500.0,0.00039452,30]
[355603725,1741359041335,-500.0,0.00039452,30]
[355603726,1741359041345,-500.0,0.00039452,30]
[355603727,1741359041355,-355.17457784,0.00039452,30]
[355603728,1741359041365,-500.0,0.00039452,30]
[355603729,1741359041375,-500.0,0.00039452,30]
[355603730,1741359041386,-500.0,0.00039452,30]
[355603731,1741359041396,-513.17,0.00039452,30]
[355603732,1741359041406,-500.0,0.00039452,30]
[355603733,1741359041416,-500.0,0.00039452,30]
[355603734,1741359041426,-500.0,0.00039452,30]
[355603735,1741359041436,-500.0,0.00039452,30]
[355603736,1741359041446,-500.0,0.00039452,30]
[355603737,1741359041456,-253.86,0.00039452,30]
[355603738,1741359041466,-419.08,0.00039452,30]
[355603739,1741359041475,-1000.0,0.00039452,2]
[355603740,1741359041485,-8866.06982899,0.0003949,3]
[355603741,1741359041495,-4053.1,0.000395,7]
[355603742,1741359041505,-19334.66611773,0.000396,30]
[355603743,1741359041521,-1500.0,0.00039632,2]
[355603744,1741359041530,-500.0,0.00039726,30]
[355603745,1741359041541,-644.44415945,0.00039726,30]
[355603746,1741359041551,-500.0,0.00039726,30]
[355603747,1741359041563,-500.0,0.00039726,30]
[355603748,1741359041573,-500.0,0.00039726,30]
[355603749,1741359041582,-513.17,0.00039726,30]
[355603750,1741359041592,-1000.0,0.00039726,2]
[355603751,1741359041603,-1500.0,0.00039858,5]
[355603752,1741359041613,-1500.0,0.00039858,5]
[355603753,1741359041623,-1500.0,0.00039858,5]
[355603754,1741359041632,-1000.0,0.0004,30]
[355603755,1741359041642,-500.0,0.0004,30]
[355603756,1741359041652,-500.0,0.0004,30]
[355603757,1741359041662,-500.0,0.0004,30]
[355603758,1741359041672,-500.0,0.0004,30]
[355603759,1741359041682,-513.17,0.0004,30]
[355603760,1741359041692,-5023.8617458,0.0004,120]
[355603761,1741359041702,-1000.0,0.0004,2]
[355603762,1741359041711,-500.0,0.00040273,30]
[355603763,1741359041721,-500.0,0.00040273,30]
[355603764,1741359041731,-500.0,0.00040273,30]
[355603765,1741359041741,-500.0,0.00040273,30]
[355603766,1741359041751,-513.17,0.00040273,30]
[355603767,1741359041761,-1000.0,0.00040273,2]
[355603768,1741359041774,-218.4,0.000403,30]
[355603769,1741359041784,-185.42,0.000403,30]
[355603770,1741359041793,-500.0,0.00040547,30]
[355603771,1741359041803,-500.0,0.00040547,30]
[355603772,1741359041813,-500.0,0.00040547,30]
[355603773,1741359041823,-500.0,0.00040547,30]
[355603774,1741359041832,-513.17,0.00040547,30]
[355603775,1741359041842,-1000.0,0.00040547,2]
[355603776,1741359041852,-170.118,0.00040575,58]
[355603777,1741359041862,-152.18,0.000408,31]
[355603778,1741359041871,-152.18,0.000408,31]
[355603779,1741359041880,-152.18,0.000408,31]
[355603780,1741359041890,-152.18,0.000408,31]
[355603781,1741359041899,-152.18,0.000408,31]
[355603782,1741359041909,-152.18,0.000408,31]
[355603783,1741359041918,-152.18,0.000408,31]
[355603784,1741359041927,-152.18,0.000408,31]
[355603785,1741359041937,-152.18,0.000408,31]
[355603786,1741359041946,-152.18,0.000408,31]
[355603787,1741359041955,-152.18,0.000408,31]
[355603788,1741359041965,-152.18,0.000408,31]
[355603789,1741359041975,-500.0,0.00040821,30]
[355603790,1741359041984,-500.0,0.00040821,30]
[355603791,1741359041994,-500.0,0.00040821,30]
[355603792,1741359042003,-500.0,0.00040821,30]
[355603793,1741359042017,-513.17,0.00040821,30]
[355603794,1741359042027,-1000.0,0.00040821,2]
[355603795,1741359042037,-500.0,0.00040879,5]
[355603796,1741359042047,-4038.07809558,0.00040995,2]
[355603797,1741359042056,-8866.06982899,0.00041085,3]
[355603798,1741359042065,-1075.369,0.00041094,2]
[355603799,1741359042075,-622.9,0.00041095,7]
[355603800,1741359042085,-500.0,0.00041095,120]
[355603801,1741359042095,-588.10917495,0.00041095,120]
[355603802,1741359042104,-500.0,0.00041095,120]
[355603803,1741359042114,-500.0,0.00041095,120]
[355603804,1741359042125,-513.17,0.00041095,120]
[355603805,1741359042135,-1198.19,0.00041095,120]
[355603806,1741359042145,-999.85,0.00041095,2]
[355603807,1741359042156,-500.0,0.00041211,2]
[355603808,1741359042167,-187.74868182,0.00041369,120]
[355603809,1741359042177,-500.0,0.00041369,120]
[355603810,1741359042188,-500.0,0.00041369,120]
[355603811,1741359042199,-513.17,0.00041369,120]
[355603812,1741359042209,-200.0,0.000414,120]
[355603813,1741359042219,-622.9,0.00041643,7]
[355603814,1741359042230,-500.0,0.00041643,120]
[355603815,1741359042240,-500.0,0.00041643,120]
[355603816,1741359042250,-513.17,0.00041643,120]
[355603817,1741359042261,-1198.19,0.00041643,120]
[355603818,1741359042273,-500.0,0.000419,10]
[355603819,1741359042283,-500.0,0.00041917,120]
[355603820,1741359042293,-583.78635706,0.00041917,120]
[355603821,1741359042303,-513.17,0.00041917,120]
[355603822,1741359042312,-382.0,0.00042,120]
[355603823,1741359042322,-185.42,0.00042,30]
[355603824,1741359042333,-766.00542662,0.00042087,120]
[355603825,1741359042342,-622.9,0.00042191,7]
[355603826,1741359042352,-500.0,0.00042191,120]
[355603827,1741359042362,-513.17,0.00042191,120]
[355603828,1741359042372,-1198.19,0.00042191,120]
[355603829,1741359042382,-218.4,0.000422,30]
[355603830,1741359042392,-500.0,0.00042465,120]
[355603831,1741359042402,-513.17,0.00042465,120]
[355603832,1741359042412,-622.9,0.00042739,7]
[355603833,1741359042422,-500.0,0.00042739,120]
[355603834,1741359042431,-513.17,0.00042739,120]
[355603835,1741359042441,-1198.19,0.00042739,120]
[355603836,1741359042451,-500.0,0.00043013,120]
[355603837,1741359042461,-513.17,0.00043013,120]
[355603838,1741359042471,-622.9,0.00043287,7]
[355603839,1741359042481,-500.0,0.00043287,120]
[355603840,1741359042491,-513.17,0.00043287,120]
[355603841,1741359042501,-1198.19,0.00043287,120]
[355603842,1741359042517,-929.55854348,0.00043471,28]
[355603843,1741359042534,-500.0,0.00043561,120]
[355603844,1741359042543,-513.17,0.00043561,120]
[355603845,1741359042553,-379.27584,0.000436,120]
[355603846,1741359042563,-152.18,0.000436,36]
[355603847,1741359042574,-152.18,0.000436,36]
[355603848,1741359042584,-152.18,0.000436,36]
[355603849,1741359042594,-152.18,0.000436,36]
[355603850,1741359042605,-152.18,0.000436,36]
[355603851,1741359042615,-152.18,0.000436,36]
[355603852,1741359042626,-152.18,0.000436,36]
[355603853,1741359042635,-152.18,0.000436,36]
[355603854,1741359042645,-152.18,0.000436,36]
[355603855,1741359042655,-152.18,0.000436,36]
[355603856,1741359042665,-152.18,0.000436,36]
[355603857,1741359042675,-152.18,0.000436,36]
[355603858,1741359042685,-1115.157653,0.00043833,2]
[355603859,1741359042697,-622.9,0.00043835,7]
[355603860,1741359042707,-500.0,0.00043835,120]
[355603861,1741359042717,-513.17,0.00043835,120]
[355603862,1741359042727,-1198.19,0.00043835,120]
[355603863,1741359042737,-253.72521457,0.00043836,10]
[355603864,1741359042747,-1000.0,0.00043852,10]
[355603865,1741359042757,-1000.0,0.00043852,10]
[355603866,1741359042773,-1000.0,0.00043852,10]
[355603867,1741359042783,-1000.0,0.00043852,10]
[355603868,1741359042794,-1000.0,0.00043852,10]
[355603869,1741359042805,-153.0,0.00043864,2]
[355603871,1741359042815,-153.0,0.00043864,2]
[355603872,1741359042825,-153.0,0.00043864,2]
[355603874,1741359042835,-153.0,0.00043864,2]
[355603876,1741359042845,-153.0,0.00043864,2]
[355603877,1741359042857,-1000.0,0.00044,30]
[355603879,1741359042866,-382.0,0.00044,120]
[355603880,1741359042877,-8866.06982899,0.0004408,3]
[355603882,1741359042887,-218.4,0.000441,30]
[355603884,1741359042898,-185.42,0.000441,30]
[355603887,1741359042908,-349.48031607,0.00044109,120]
[355603889,1741359042918,-513.17,0.00044109,120]
[355603891,1741359042927,-622.9,0.00044383,7]
[355603892,1741359042937,-513.17,0.00044383,120]
[355603894,1741359042946,-1198.19,0.00044383,120]
[355603895,1741359042956,-513.36470839,0.00044657,120]
[355603896,1741359042966,-202.3762556,0.000447,10]
[355603897,1741359042975,-622.9,0.00044931,7]
[355603898,1741359042985,-1198.19,0.00044931,120]
[355603899,1741359042994,-1000.0,0.00045,30]
[355603901,1741359043004,-1000.0,0.00045,30]
[355603902,1741359043016,-1000.0,0.00045,30]
[355603904,1741359043029,-4038.07809558,0.00045194,2]
[355603905,1741359043039,-622.9,0.00045479,7]
[355603906,1741359043049,-1198.19,0.00045479,120]
[355603907,1741359043059,-382.0,0.00046,120]
[355603908,1741359043068,-622.9,0.00046027,7]
[355603909,1741359043078,-1198.19,0.00046027,120]
[355603910,1741359043088,-152.18,0.000463,39]
[355603911,1741359043098,-152.18,0.000463,39]
[355603912,1741359043107,-152.18,0.000463,39]
[355603913,1741359043116,-152.18,0.000463,39]
[355603914,1741359043127,-152.18,0.000463,39]
[355603915,1741359043136,-152.18,0.000463,39]
[355603916,1741359043146,-152.18,0.000463,39]
[355603917,1741359043156,-152.18,0.000463,39]
[355603918,1741359043166,-152.18,0.000463,39]
[355603919,1741359043176,-152.18,0.000463,39]
[355603920,1741359043186,-152.18,0.000463,39]
[355603921,1741359043196,-152.18,0.000463,39]
[355603922,1741359043206,-500.0,0.00046532,2]
[355603923,1741359043215,-2060.67140475,0.00046572,2]
[355603924,1741359043225,-622.9,0.00046575,7]
[355603925,1741359043235,-1198.19,0.00046575,120]
[355603926,1741359043244,-561.69848354,0.00046742,96]
[355603927,1741359043254,-600.0,0.00046749,120]
[355603928,1741359043268,-561.69848354,0.00046842,95]
[355603929,1741359043277,-561.69848354,0.00046942,94]
[355603930,1741359043286,-600.0,0.00047023,120]
[355603931,1741359043296,-561.69848354,0.00047042,91]
[355603932,1741359043306,-622.9,0.00047123,7]
[355603933,1741359043316,-1198.19,0.00047123,120]
[355603934,1741359043326,-561.69848354,0.00047142,91]
[355603935,1741359043335,-561.69848354,0.00047242,94]
[355603936,1741359043345,-600.0,0.00047297,120]
[355603937,1741359043355,-561.69848354,0.00047342,97]
[355603938,1741359043364,-508.77096937,0.00047379,10]
[355603939,1741359043374,-561.69848354,0.00047442,100]
[355603940,1741359043384,-200.0,0.00047455,120]
[355603942,1741359043393,-561.69848354,0.00047542,90]
[355603943,1741359043403,-200.0,0.00047556,120]
[355603945,1741359043412,-600.0,0.00047571,120]
[355603946,1741359043421,-200.0,0.00047593,120]
[355603948,1741359043431,-561.69848354,0.00047642,99]
[355603950,1741359043440,-8866.06982899,0.00047651,4]
[355603951,1741359043450,-622.9,0.00047671,7]
[355603953,1741359043460,-1198.19,0.00047671,120]
[355603954,1741359043470,-561.69848354,0.00047742,100]
[355603955,1741359043480,-200.0,0.00047742,120]
[355603956,1741359043490,-561.69848354,0.00047842,96]
[355603957,1741359043500,-600.0,0.00047845,120]
[355603958,1741359043511,-561.69848354,0.00047942,98]
[355603959,1741359043527,-500.0,0.00047946,2]
[355603960,1741359043538,-1000.0,0.00048,30]
[355603961,1741359043548,-1000.0,0.00048,30]
[355603962,1741359043558,-382.0,0.00048,120]
[355603963,1741359043569,-561.69848354,0.00048042,91]
[355603964,1741359043589,-561.69848354,0.00048142,91]
[355603965,1741359043598,-622.9,0.00048219,7]
[355603966,1741359043610,-1198.19,0.00048219,120]
[355603967,1741359043620,-561.69848354,0.00048242,98]
[355603968,1741359043631,-260.2665,0.000483,120]
[355603969,1741359043640,-1415.2063407,0.00048329,4]
[355603970,1741359043650,-561.69848354,0.00048342,90]
[355603971,1741359043659,-600.0,0.00048393,120]
[355603972,1741359043669,-200.0,0.00048412,120]
[355603973,1741359043679,-561.69848354,0.00048442,91]
[355603974,1741359043688,-2402.19245131,0.00048492,120]
[355603975,1741359043698,-501.64829074,0.00048493,10]
[355603976,1741359043708,-561.69848354,0.00048542,93]
[355603977,1741359043718,-929.55854348,0.00048614,28]
[355603978,1741359043727,-561.69848354,0.00048642,93]
[355603979,1741359043737,-200.0,0.00048698,120]
[355603980,1741359043747,-218.4,0.000487,30]
[355603981,1741359043758,-561.69848354,0.00048742,98]
[355603982,1741359043771,-622.9,0.00048767,7]
[355603983,1741359043781,-1198.19,0.00048767,120]
[355603984,1741359043790,-185.42,0.000488,30]
[355603985,1741359043800,-561.69848354,0.00048842,100]
[355603986,1741359043810,-200.0,0.00048875,120]
[355603987,1741359043820,-206.86,0.000489,120]
[355603988,1741359043830,-160.89445295,0.000489,120]
[355603989,1741359043840,-160.89445295,0.000489,120]
[355603990,1741359043850,-600.0,0.00048941,120]
[355603991,1741359043886,-561.69848354,0.00048942,90]
[355603992,1741359043895,-500.0,0.00048973,10]
[355603993,1741359043905,-35464.279316,0.0004898,4]
[355603994,1741359043915,-79794.6284609,0.0004899,4]
[355603995,1741359043925,-270146.71677837,0.00049,30]
[355603996,1741359043936,-270146.71677837,0.00049,30]
[355603997,1741359043946,-14910.29256683,0.00049,30]
[355603998,1741359043955,-14910.29256683,0.00049,30]
[355603999,1741359043966,-90048.90559279,0.00049,30]
[355604000,1741359043984,-90048.90559279,0.00049,30]
[355604001,1741359043994,-800.0,0.00049013,14]
[355604002,1741359044004,-561.69848354,0.00049042,94]
[355604003,1741359044014,-1283.06683,0.0004908,21]
[355604004,1741359044026,-800.0,0.00049088,14]
[355604005,1741359044036,-1000.0,0.000491,21]
[355604006,1741359044047,-152.18,0.000491,45]
[355604007,1741359044058,-152.18,0.000491,45]
[355604008,1741359044067,-152.18,0.000491,45]
[355604009,1741359044077,-152.18,0.000491,45]
[355604010,1741359044087,-152.18,0.000491,45]
[355604011,1741359044097,-152.18,0.000491,45]
[355604012,1741359044108,-152.18,0.000491,45]
[355604013,1741359044119,-152.18,0.000491,45]
[355604014,1741359044131,-152.18,0.000491,45]
[355604015,1741359044142,-152.18,0.000491,45]
[355604016,1741359044152,-1000.0,0.0004912,21]
[355604017,1741359044162,-1000.0,0.0004914,21]
[355604018,1741359044172,-561.69848354,0.00049142,91]
[355604019,1741359044181,-1000.0,0.0004916,21]
[355604020,1741359044190,-1000.0,0.0004918,21]
[355604021,1741359044200,-1000.0,0.000492,21]
[355604022,1741359044211,-9686.27622078,0.000492,2]
[355604023,1741359044221,-1000.0,0.0004922,21]
[355604024,1741359044232,-1000.0,0.0004924,21]
[355604025,1741359044242,-561.69848354,0.00049242,91]
[355604026,1741359044252,-1000.0,0.0004926,21]
[355604027,1741359044261,-1000.0,0.0004928,21]
[355604028,1741359044277,-1072.177805,0.0004928,21]